[Event "*** SCC Grand Prix: Titled Tuesday Blitz"]
[Site "Chess.com"]
[Date "2020.08.11"]
[Round "9"]
[White "secretsuperstar7"]
[Black "Tactictic"]
[Result "1-0"]
[WhiteElo "2143"]
[BlackElo "2358"]
[TimeControl "180+1"]
[EndTime "11:46:27 PDT"]
[Termination "secretsuperstar7 won by checkmate"]

1. d4 {[%clk 0:02:58.5]} 1... Nf6 {[%clk 0:02:57.3]} 2. c4 {[%clk 0:02:55.4]}
2... e6 {[%clk 0:02:57.2]} 3. Nc3 {[%clk 0:02:54.9]} 3... d5 {[%clk 0:02:57.4]}
4. cxd5 {[%clk 0:02:52.1]} 4... exd5 {[%clk 0:02:58.3]} 5. Bg5 {[%clk 0:02:52]}
5... Be7 {[%clk 0:02:57.8]} 6. e3 {[%clk 0:02:45.9]} 6... c6 {[%clk 0:02:56]} 7.
Qc2 {[%clk 0:02:45.5]} 7... Nbd7 {[%clk 0:02:50.3]} 8. Bd3 {[%clk 0:02:43.2]}
8... h6 {[%clk 0:02:50.6]} 9. Bh4 {[%clk 0:02:41.6]} 9... Nh5 {[%clk 0:02:50.8]}
10. Bxe7 {[%clk 0:02:33.3]} 10... Qxe7 {[%clk 0:02:51.7]} 11. Nge2 {[%clk
0:02:29]} 11... Nb6 {[%clk 0:02:51]} 12. O-O-O {[%clk 0:02:20.1]} 12... Bd7
{[%clk 0:02:48.5]} 13. Kb1 {[%clk 0:02:19.5]} 13... O-O-O {[%clk 0:02:45.4]} 14.
Na4 {[%clk 0:02:18.9]} 14... Nxa4 {[%clk 0:02:33.1]} 15. Qxa4 {[%clk 0:02:18]}
15... Kb8 {[%clk 0:02:33.6]} 16. Qa5 {[%clk 0:02:15.9]} 16... Bc8 {[%clk
0:02:27.5]} 17. Rc1 {[%clk 0:02:13.8]} 17... Nf6 {[%clk 0:02:20.6]} 18. Rc3
{[%clk 0:02:11.6]} 18... Qc7 {[%clk 0:02:16.6]} 19. Qa4 {[%clk 0:02:09.2]} 19...
Nd7 {[%clk 0:02:11.4]} 20. Ra3 {[%clk 0:02:03.7]} 20... a6 {[%clk 0:02:11.7]}
21. Rb3 {[%clk 0:01:59.3]} 21... Ka7 {[%clk 0:02:09.8]} 22. Rc1 {[%clk 0:01:55]}
22... Nb8 {[%clk 0:01:48.6]} 23. Nc3 {[%clk 0:01:33.8]} 23... Rhe8 {[%clk
0:01:35.1]} 24. Qa3 {[%clk 0:01:24.4]} 24... Qe7 {[%clk 0:01:31.6]} 25. Qa5
{[%clk 0:01:21.6]} 25... f5 {[%clk 0:01:22.2]} 26. Na4 {[%clk 0:00:57.2]} 26...
f4 {[%clk 0:01:09.6]} 27. Qb6+ {[%clk 0:00:49.6]} 27... Ka8 {[%clk 0:01:09]} 28.
Nc5 {[%clk 0:00:49.4]} 28... Nd7 {[%clk 0:00:58.6]} 29. Nxd7 {[%clk 0:00:45.6]}
29... Qxd7 {[%clk 0:00:58.5]} 30. Bxa6 {[%clk 0:00:44.5]} 30... fxe3 {[%clk
0:00:49.5]} 31. fxe3 {[%clk 0:00:34.5]} 31... Re7 {[%clk 0:00:28.7]} 32. Bb5
{[%clk 0:00:30.6]} 32... Re6 {[%clk 0:00:14]} 33. Ra3+ {[%clk 0:00:30]} 33...
Kb8 {[%clk 0:00:14.5]} 34. Bxc6 {[%clk 0:00:11.2]} 34... Rxc6 {[%clk 0:00:15.4]}
35. Rxc6 {[%clk 0:00:10.5]} 35... Qxc6 {[%clk 0:00:16.3]} 36. Qxd8 {[%clk
0:00:10.7]} 36... b5 {[%clk 0:00:15.1]} 37. Rc3 {[%clk 0:00:10]} 37... Qg6+
{[%clk 0:00:11.7]} 38. Rc2 {[%clk 0:00:09.9]} 38... Qf5 {[%clk 0:00:10.4]} 39.
Qb6+ {[%clk 0:00:08.8]} 39... Ka8 {[%clk 0:00:10.8]} 40. Qa5+ {[%clk 0:00:07.1]}
40... Kb8 {[%clk 0:00:10.9]} 41. Qxb5+ {[%clk 0:00:07.2]} 41... Bb7 {[%clk
0:00:11.6]} 42. a3 {[%clk 0:00:05.5]} 42... Ka7 {[%clk 0:00:11.8]} 43. Qa5+
{[%clk 0:00:05.2]} 43... Kb8 {[%clk 0:00:11.6]} 44. Qc7+ {[%clk 0:00:05.2]}
44... Ka7 {[%clk 0:00:11.9]} 45. Ka2 {[%clk 0:00:05.3]} 45... Qd3 {[%clk
0:00:10.8]} 46. Rc5 {[%clk 0:00:04.6]} 46... Qc4+ {[%clk 0:00:10.2]} 47. Rxc4
{[%clk 0:00:04.7]} 47... dxc4 {[%clk 0:00:11.1]} 48. Qxc4 {[%clk 0:00:05.1]}
48... Kb8 {[%clk 0:00:11.7]} 49. d5 {[%clk 0:00:05.3]} 49... g6 {[%clk
0:00:11.7]} 50. e4 {[%clk 0:00:05.7]} 50... g5 {[%clk 0:00:10.8]} 51. Qd4 {[%clk
0:00:06]} 51... Ba6 {[%clk 0:00:10.7]} 52. b3 {[%clk 0:00:05.6]} 52... Kc7
{[%clk 0:00:10.8]} 53. e5 {[%clk 0:00:05.6]} 53... Kd7 {[%clk 0:00:11]} 54. d6
{[%clk 0:00:05.9]} 54... Ke6 {[%clk 0:00:11.1]} 55. d7 {[%clk 0:00:05.8]} 55...
Kf5 {[%clk 0:00:11]} 56. d8=Q {[%clk 0:00:05.9]} 56... Bc4 {[%clk 0:00:11.2]}
57. Qf6# {[%clk 0:00:06]} 1-0

[Event "*** SCC Grand Prix: Titled Tuesday Blitz"]
[Site "Chess.com"]
[Date "2020.08.11"]
[Round "9"]
[White "GadimbayliA"]
[Black "GMBenjaminBok"]
[Result "1/2-1/2"]
[WhiteElo "2880"]
[BlackElo "2915"]
[TimeControl "180+1"]
[EndTime "11:46:29 PDT"]
[Termination "Game drawn - insufficient material"]

1. e4 {[%clk 0:03:00.2]} 1... c5 {[%clk 0:03:00.2]} 2. Nf3 {[%clk 0:03:00]} 2...
d6 {[%clk 0:03:00.9]} 3. d4 {[%clk 0:03:00.1]} 3... cxd4 {[%clk 0:03:01.8]} 4.
Nxd4 {[%clk 0:03:01]} 4... Nf6 {[%clk 0:03:02.4]} 5. Nc3 {[%clk 0:03:00.7]} 5...
a6 {[%clk 0:03:03]} 6. g3 {[%clk 0:03:00.8]} 6... e5 {[%clk 0:03:02.4]} 7. Nf3
{[%clk 0:03:00.6]} 7... Be7 {[%clk 0:02:59.6]} 8. Bg2 {[%clk 0:03:00.2]} 8...
O-O {[%clk 0:02:56.8]} 9. O-O {[%clk 0:03:01.1]} 9... b5 {[%clk 0:02:53.9]} 10.
a4 {[%clk 0:02:59.9]} 10... b4 {[%clk 0:02:50.2]} 11. Nd5 {[%clk 0:03:00.2]}
11... Nxd5 {[%clk 0:02:50.2]} 12. Qxd5 {[%clk 0:03:01.1]} 12... Ra7 {[%clk
0:02:50.7]} 13. Be3 {[%clk 0:02:59.9]} 13... Rb7 {[%clk 0:02:44.3]} 14. Qd3
{[%clk 0:02:59.2]} 14... Be6 {[%clk 0:02:33.8]} 15. Rfd1 {[%clk 0:02:56.7]}
15... Qc7 {[%clk 0:02:31.7]} 16. Rac1 {[%clk 0:02:51.5]} 16... Rc8 {[%clk
0:02:11]} 17. c3 {[%clk 0:02:46.8]} 17... b3 {[%clk 0:01:49.7]} 18. Ra1 {[%clk
0:02:25.3]} 18... Qa5 {[%clk 0:01:30.9]} 19. Nd2 {[%clk 0:02:16.9]} 19... Nd7
{[%clk 0:01:26]} 20. f4 {[%clk 0:02:11.1]} 20... Nc5 {[%clk 0:01:21]} 21. Qe2
{[%clk 0:02:08.5]} 21... Nxa4 {[%clk 0:01:09.6]} 22. Nf3 {[%clk 0:01:25.6]}
22... Qb5 {[%clk 0:01:06.8]} 23. Qf2 {[%clk 0:01:25.8]} 23... Nb6 {[%clk
0:00:55.1]} 24. Bxb6 {[%clk 0:01:13.8]} 24... Qxb6 {[%clk 0:00:49.4]} 25. Qxb6
{[%clk 0:01:12.6]} 25... Rxb6 {[%clk 0:00:50.3]} 26. fxe5 {[%clk 0:01:13.5]}
26... dxe5 {[%clk 0:00:48.2]} 27. Nxe5 {[%clk 0:01:13.2]} 27... g6 {[%clk
0:00:36.9]} 28. Nf3 {[%clk 0:01:09.6]} 28... Bc5+ {[%clk 0:00:30.3]} 29. Nd4
{[%clk 0:01:06.3]} 29... Rd8 {[%clk 0:00:28.4]} 30. Kh1 {[%clk 0:01:01.7]} 30...
Rbd6 {[%clk 0:00:22.4]} 31. Ra4 {[%clk 0:00:57.3]} 31... Bd7 {[%clk 0:00:15.8]}
32. Rc4 {[%clk 0:00:55.2]} 32... Ba7 {[%clk 0:00:15.3]} 33. Rd2 {[%clk
0:00:35.9]} 33... Bb5 {[%clk 0:00:14.4]} 34. Rb4 {[%clk 0:00:35.1]} 34... Bc5
{[%clk 0:00:13.9]} 35. Rxb3 {[%clk 0:00:33.8]} 35... Bxd4 {[%clk 0:00:14.5]} 36.
cxd4 {[%clk 0:00:32.6]} 36... Rxd4 {[%clk 0:00:15]} 37. Rxd4 {[%clk 0:00:33.5]}
37... Rxd4 {[%clk 0:00:15.3]} 38. Bf3 {[%clk 0:00:31.2]} 38... Rd2 {[%clk
0:00:13.6]} 39. Kg1 {[%clk 0:00:27.6]} 39... Kg7 {[%clk 0:00:13.7]} 40. e5
{[%clk 0:00:25.1]} 40... Kf8 {[%clk 0:00:13.1]} 41. h4 {[%clk 0:00:20.8]} 41...
Ke7 {[%clk 0:00:13.2]} 42. Bb7 {[%clk 0:00:19.1]} 42... Re2 {[%clk 0:00:09.7]}
43. Ra3 {[%clk 0:00:17.4]} 43... Rxb2 {[%clk 0:00:06.8]} 44. Bxa6 {[%clk
0:00:13.2]} 44... Bxa6 {[%clk 0:00:06.3]} 45. Rxa6 {[%clk 0:00:14.1]} 45... Rb5
{[%clk 0:00:06.5]} 46. e6 {[%clk 0:00:12.9]} 46... fxe6 {[%clk 0:00:05]} 47.
Ra7+ {[%clk 0:00:13]} 47... Kf6 {[%clk 0:00:05.6]} 48. Rxh7 {[%clk 0:00:13.6]}
48... Kf5 {[%clk 0:00:05.5]} 49. Ra7 {[%clk 0:00:08.4]} 49... Kg4 {[%clk
0:00:04.6]} 50. Rg7 {[%clk 0:00:08.1]} 50... Kxg3 {[%clk 0:00:03.6]} 51. Rxg6+
{[%clk 0:00:08.4]} 51... Kxh4 {[%clk 0:00:04.1]} 52. Rxe6 {[%clk 0:00:08.6]}
52... Rg5+ {[%clk 0:00:04.3]} 53. Kf2 {[%clk 0:00:08.4]} 53... Rf5+ {[%clk
0:00:04.8]} 54. Ke3 {[%clk 0:00:08.2]} 54... Kg5 {[%clk 0:00:05.7]} 55. Kd4
{[%clk 0:00:07.8]} 55... Rf6 {[%clk 0:00:05.8]} 56. Rxf6 {[%clk 0:00:07.9]}
56... Kxf6 {[%clk 0:00:06.3]} 1/2-1/2

[Event "*** SCC Grand Prix: Titled Tuesday Blitz"]
[Site "Chess.com"]
[Date "2020.08.11"]
[Round "9"]
[White "bazar-wokzal"]
[Black "keepitcool9499"]
[Result "0-1"]
[WhiteElo "2463"]
[BlackElo "2650"]
[TimeControl "180+1"]
[EndTime "11:46:33 PDT"]
[Termination "keepitcool9499 won on time"]

1. e4 {[%clk 0:03:00.9]} 1... e6 {[%clk 0:03:00.9]} 2. d4 {[%clk 0:03:00.4]}
2... d5 {[%clk 0:02:59.8]} 3. exd5 {[%clk 0:03:00.6]} 3... exd5 {[%clk
0:02:58.9]} 4. Nf3 {[%clk 0:03:00.9]} 4... Nf6 {[%clk 0:02:59.1]} 5. c4 {[%clk
0:03:00.7]} 5... c6 {[%clk 0:02:58.4]} 6. Bd3 {[%clk 0:03:00.9]} 6... dxc4
{[%clk 0:02:56.3]} 7. Bxc4 {[%clk 0:03:00.8]} 7... Bd6 {[%clk 0:02:55.2]} 8. O-O
{[%clk 0:03:00.5]} 8... O-O {[%clk 0:02:55.3]} 9. Nc3 {[%clk 0:03:00.3]} 9...
Bc7 {[%clk 0:02:52.4]} 10. Bg5 {[%clk 0:02:59.6]} 10... Bg4 {[%clk 0:02:50.5]}
11. h3 {[%clk 0:02:58.7]} 11... Bxf3 {[%clk 0:02:44.2]} 12. Qxf3 {[%clk
0:02:58.5]} 12... Qxd4 {[%clk 0:02:44.6]} 13. Bxf6 {[%clk 0:02:46.5]} 13... Qxf6
{[%clk 0:02:45.5]} 14. Qxf6 {[%clk 0:02:45.9]} 14... gxf6 {[%clk 0:02:46.4]} 15.
Rad1 {[%clk 0:02:42.4]} 15... a5 {[%clk 0:02:35.1]} 16. a4 {[%clk 0:02:35.9]}
16... Na6 {[%clk 0:02:32.4]} 17. Bxa6 {[%clk 0:02:21.3]} 17... bxa6 {[%clk
0:02:33.3]} 18. Ne4 {[%clk 0:02:13.8]} 18... Be5 {[%clk 0:02:25.9]} 19. b3
{[%clk 0:02:09.1]} 19... Rab8 {[%clk 0:02:23.9]} 20. Rd3 {[%clk 0:02:07.9]}
20... Rb4 {[%clk 0:02:21.6]} 21. Nc5 {[%clk 0:02:05]} 21... Rd4 {[%clk
0:02:13.5]} 22. Rfd1 {[%clk 0:01:59.6]} 22... Rfd8 {[%clk 0:02:08.4]} 23. Kf1
{[%clk 0:01:48.8]} 23... Rxd3 {[%clk 0:02:02.4]} 24. Rxd3 {[%clk 0:01:48.4]}
24... Rxd3 {[%clk 0:01:59.5]} 25. Nxd3 {[%clk 0:01:48.3]} 25... Kf8 {[%clk
0:01:57.9]} 26. Ke2 {[%clk 0:01:45.8]} 26... Ke7 {[%clk 0:01:56]} 27. Ke3 {[%clk
0:01:41.2]} 27... Ke6 {[%clk 0:01:53.2]} 28. f4 {[%clk 0:01:34]} 28... Bc3
{[%clk 0:01:45.2]} 29. Nc5+ {[%clk 0:01:25.8]} 29... Kd5 {[%clk 0:01:43.5]} 30.
Nxa6 {[%clk 0:01:19.3]} 30... f5 {[%clk 0:01:39.8]} 31. Kd3 {[%clk 0:01:11]}
31... Be1 {[%clk 0:01:37.4]} 32. Nc7+ {[%clk 0:01:05.1]} 32... Kc5 {[%clk
0:01:36]} 33. Ne8 {[%clk 0:01:03.4]} 33... Bg3 {[%clk 0:01:32.9]} 34. Ng7 {[%clk
0:01:00.2]} 34... Bxf4 {[%clk 0:01:28.5]} 35. Nxf5 {[%clk 0:01:00.4]} 35... h5
{[%clk 0:01:27.8]} 36. h4 {[%clk 0:00:52.8]} 36... Kb4 {[%clk 0:01:23.5]} 37.
Kc2 {[%clk 0:00:51.6]} 37... Be5 {[%clk 0:01:12.7]} 38. Ne7 {[%clk 0:00:40]}
38... Kc5 {[%clk 0:01:10.8]} 39. Kd3 {[%clk 0:00:40.3]} 39... Bf6 {[%clk
0:01:05.5]} 40. Nf5 {[%clk 0:00:39.3]} 40... Kd5 {[%clk 0:01:03.2]} 41. Ng3
{[%clk 0:00:32.1]} 41... Bxh4 {[%clk 0:00:55.2]} 42. Nxh5 {[%clk 0:00:32.3]}
42... Bg5 {[%clk 0:00:52.9]} 43. Ng3 {[%clk 0:00:30.8]} 43... Ke5 {[%clk
0:00:43.2]} 44. Kc4 {[%clk 0:00:20.7]} 44... Be3 {[%clk 0:00:40.9]} 45. Kd3
{[%clk 0:00:13.4]} 45... Bb6 {[%clk 0:00:36.2]} 46. Ne4 {[%clk 0:00:10.6]} 46...
f5 {[%clk 0:00:28.1]} 47. Nd2 {[%clk 0:00:10.6]} 47... Kf4 {[%clk 0:00:23.9]}
48. Nc4 {[%clk 0:00:10.9]} 48... Bc7 {[%clk 0:00:20]} 49. Kd4 {[%clk 0:00:11.2]}
49... Kg3 {[%clk 0:00:18.2]} 50. Kc5 {[%clk 0:00:11.5]} 50... f4 {[%clk
0:00:16.4]} 51. Kxc6 {[%clk 0:00:11.6]} 51... Bd8 {[%clk 0:00:14.5]} 52. Kd7
{[%clk 0:00:10.9]} 52... Bg5 {[%clk 0:00:12.7]} 53. Nxa5 {[%clk 0:00:06.2]}
53... Kxg2 {[%clk 0:00:10.8]} 54. Nc4 {[%clk 0:00:01.7]} 54... f3 {[%clk
0:00:09.7]} 0-1

[Event "*** SCC Grand Prix: Titled Tuesday Blitz"]
[Site "Chess.com"]
[Date "2020.08.11"]
[Round "9"]
[White "LyonBeast"]
[Black "kakarot_001"]
[Result "1-0"]
[WhiteElo "3021"]
[BlackElo "2823"]
[TimeControl "180+1"]
[EndTime "11:46:35 PDT"]
[Termination "LyonBeast won by resignation"]

1. Nf3 {[%clk 0:03:00.9]} 1... Nf6 {[%clk 0:02:58.1]} 2. g3 {[%clk 0:03:00.2]}
2... e6 {[%clk 0:02:57.2]} 3. Bg2 {[%clk 0:03:01.1]} 3... b6 {[%clk 0:02:56.6]}
4. O-O {[%clk 0:03:01.8]} 4... Bb7 {[%clk 0:02:56.9]} 5. b3 {[%clk 0:03:02.5]}
5... Be7 {[%clk 0:02:57]} 6. Bb2 {[%clk 0:03:02.7]} 6... O-O {[%clk 0:02:57.5]}
7. d3 {[%clk 0:03:03.3]} 7... c5 {[%clk 0:02:57.1]} 8. e4 {[%clk 0:03:02.5]}
8... Nc6 {[%clk 0:02:57.1]} 9. e5 {[%clk 0:02:58.9]} 9... Nd5 {[%clk 0:02:55.8]}
10. Nbd2 {[%clk 0:02:56]} 10... f6 {[%clk 0:02:54.2]} 11. c4 {[%clk 0:02:54.1]}
11... Nc7 {[%clk 0:02:53.8]} 12. Ne4 {[%clk 0:02:52.1]} 12... f5 {[%clk
0:02:43.6]} 13. Nd6 {[%clk 0:02:42.2]} 13... Bxd6 {[%clk 0:02:17.1]} 14. exd6
{[%clk 0:02:43.1]} 14... Ne8 {[%clk 0:02:17.2]} 15. d4 {[%clk 0:02:43.6]} 15...
Nxd4 {[%clk 0:02:14]} 16. Nxd4 {[%clk 0:02:44.5]} 16... Bxg2 {[%clk 0:02:13.7]}
17. Kxg2 {[%clk 0:02:31]} 17... cxd4 {[%clk 0:02:12.9]} 18. Qxd4 {[%clk
0:02:31.9]} 18... Qf6 {[%clk 0:02:05.2]} 19. Qd2 {[%clk 0:02:29.2]} 19... Qf7
{[%clk 0:02:03.4]} 20. Be5 {[%clk 0:02:28.8]} 20... Rc8 {[%clk 0:01:52.7]} 21.
Qd4 {[%clk 0:02:21.4]} 21... Nf6 {[%clk 0:01:50]} 22. f3 {[%clk 0:02:20.8]}
22... g5 {[%clk 0:01:36.3]} 23. a4 {[%clk 0:02:19.4]} 23... g4 {[%clk
0:01:16.7]} 24. f4 {[%clk 0:02:17.4]} 24... h5 {[%clk 0:01:06.7]} 25. a5 {[%clk
0:02:16.7]} 25... h4 {[%clk 0:01:06.7]} 26. axb6 {[%clk 0:02:10.8]} 26... axb6
{[%clk 0:01:07.6]} 27. Qxb6 {[%clk 0:02:05.6]} 27... Ne4 {[%clk 0:01:04.7]} 28.
Qe3 {[%clk 0:01:58]} 28... Qh5 {[%clk 0:01:02.7]} 29. Rh1 {[%clk 0:01:57.6]}
29... Rf7 {[%clk 0:00:59.9]} 30. h3 {[%clk 0:01:43.7]} 30... Nxg3 {[%clk
0:00:50.7]} 31. hxg4 {[%clk 0:01:10.1]} 31... Qxg4 {[%clk 0:00:51.6]} 32. Rxh4
{[%clk 0:01:10]} 32... Qxh4 {[%clk 0:00:43.3]} 33. Qxg3+ {[%clk 0:01:10.4]}
33... Qxg3+ {[%clk 0:00:43.6]} 34. Kxg3 {[%clk 0:01:11.3]} 34... Rh7 {[%clk
0:00:41.1]} 35. Kf2 {[%clk 0:00:38.5]} 35... Kf7 {[%clk 0:00:34.9]} 36. Ke3
{[%clk 0:00:36.7]} 36... Rh3+ {[%clk 0:00:32.5]} 37. Kd4 {[%clk 0:00:36.9]}
37... Rxb3 {[%clk 0:00:33]} 38. Rg1 {[%clk 0:00:32.7]} 38... Rg8 {[%clk
0:00:24.1]} 39. Rh1 {[%clk 0:00:32.8]} 39... Kg6 {[%clk 0:00:19.1]} 40. Rg1+
{[%clk 0:00:32.8]} 40... Kf7 {[%clk 0:00:19.4]} 41. Rh1 {[%clk 0:00:33.5]} 41...
Kg6 {[%clk 0:00:19.6]} 42. Ra1 {[%clk 0:00:34.1]} 42... Rb7 {[%clk 0:00:12.7]}
43. Rg1+ {[%clk 0:00:31.3]} 43... Kf7 {[%clk 0:00:12.9]} 44. Rh1 {[%clk
0:00:32]} 44... Kg6 {[%clk 0:00:13.2]} 45. c5 {[%clk 0:00:30.6]} 45... Rb4+
{[%clk 0:00:11.9]} 46. Kc3 {[%clk 0:00:30.8]} 46... Rgb8 {[%clk 0:00:08.7]} 47.
Rg1+ {[%clk 0:00:30.3]} 47... Kh6 {[%clk 0:00:07.5]} 48. Rg7 {[%clk 0:00:29.5]}
48... Rb2 {[%clk 0:00:06.5]} 49. Rxd7 {[%clk 0:00:27]} 49... R8b3+ {[%clk
0:00:06.4]} 50. Kc4 {[%clk 0:00:27.6]} 50... Rb4+ {[%clk 0:00:06.8]} 51. Kd3
{[%clk 0:00:28.2]} 51... R2b3+ {[%clk 0:00:03.2]} 52. Kc2 {[%clk 0:00:27.6]}
52... Ra3 {[%clk 0:00:01.6]} 53. Rc7 {[%clk 0:00:24.5]} 53... Rc4+ {[%clk
0:00:02]} 54. Kb2 {[%clk 0:00:24.6]} 54... Ra5 {[%clk 0:00:02.7]} 55. d7 {[%clk
0:00:18.5]} 55... Rb5+ {[%clk 0:00:03.2]} 56. Ka3 {[%clk 0:00:18.7]} 56... Rb8
{[%clk 0:00:02.7]} 57. Rc8 {[%clk 0:00:17.7]} 57... Rxc8 {[%clk 0:00:01.7]} 58.
dxc8=Q {[%clk 0:00:17.6]} 1-0

[Event "*** SCC Grand Prix: Titled Tuesday Blitz"]
[Site "Chess.com"]
[Date "2020.08.11"]
[Round "9"]
[White "Alexander_Donchenko"]
[Black "IMHansNiemann"]
[Result "0-1"]
[WhiteElo "2688"]
[BlackElo "2917"]
[TimeControl "180+1"]
[EndTime "11:46:37 PDT"]
[Termination "IMHansNiemann won by resignation"]

1. Nf3 {[%clk 0:03:00.9]} 1... d5 {[%clk 0:02:54.5]} 2. g3 {[%clk 0:03:01]} 2...
c5 {[%clk 0:02:49.6]} 3. Bg2 {[%clk 0:03:01.1]} 3... Nc6 {[%clk 0:02:50.2]} 4.
d4 {[%clk 0:03:01.4]} 4... Nf6 {[%clk 0:02:49.2]} 5. O-O {[%clk 0:03:00.9]} 5...
e6 {[%clk 0:02:49.1]} 6. c4 {[%clk 0:03:01]} 6... dxc4 {[%clk 0:02:50]} 7. dxc5
{[%clk 0:03:01.2]} 7... Bxc5 {[%clk 0:02:45.2]} 8. Qxd8+ {[%clk 0:03:00.5]} 8...
Nxd8 {[%clk 0:02:46.1]} 9. Ne5 {[%clk 0:02:56]} 9... Bd7 {[%clk 0:02:41.7]} 10.
Nxc4 {[%clk 0:02:48.6]} 10... Bc6 {[%clk 0:02:41.5]} 11. Nc3 {[%clk 0:02:45]}
11... Rc8 {[%clk 0:02:37.9]} 12. Bg5 {[%clk 0:02:33.1]} 12... h6 {[%clk
0:02:31.3]} 13. Bxf6 {[%clk 0:02:20.2]} 13... gxf6 {[%clk 0:02:32.2]} 14. Bxc6+
{[%clk 0:02:08.3]} 14... Rxc6 {[%clk 0:02:31.2]} 15. Kg2 {[%clk 0:01:51.4]}
15... f5 {[%clk 0:02:25.5]} 16. Ne5 {[%clk 0:01:41.3]} 16... Rc8 {[%clk
0:02:24.8]} 17. Rfd1 {[%clk 0:01:39.3]} 17... Nc6 {[%clk 0:02:22.1]} 18. Nd3
{[%clk 0:01:35.9]} 18... Be7 {[%clk 0:02:16.8]} 19. Rac1 {[%clk 0:01:35.7]}
19... O-O {[%clk 0:02:09.1]} 20. b3 {[%clk 0:01:11.3]} 20... Ba3 {[%clk
0:02:06]} 21. Rb1 {[%clk 0:01:10.9]} 21... a6 {[%clk 0:02:05.1]} 22. Na4 {[%clk
0:01:03.6]} 22... Nd4 {[%clk 0:02:01.4]} 23. e3 {[%clk 0:01:03.3]} 23... Nb5
{[%clk 0:02:01]} 24. b4 {[%clk 0:00:56.6]} 24... Rc2 {[%clk 0:01:59.9]} 25. Rb3
{[%clk 0:00:49.6]} 25... Rd8 {[%clk 0:01:58.3]} 26. Nac5 {[%clk 0:00:44.5]}
26... b6 {[%clk 0:01:50.3]} 27. Nxa6 {[%clk 0:00:43.3]} 27... Ra8 {[%clk
0:01:47.3]} 28. Ne1 {[%clk 0:00:32]} 28... Rcc8 {[%clk 0:01:41.5]} 29. Rd7
{[%clk 0:00:24.3]} 29... Rxa6 {[%clk 0:01:40.9]} 30. Nf3 {[%clk 0:00:24.2]}
30... Rc7 {[%clk 0:01:35.5]} 31. Rd8+ {[%clk 0:00:24.6]} 31... Kg7 {[%clk
0:01:35.5]} 32. Ne5 {[%clk 0:00:24.9]} 32... Raa7 {[%clk 0:01:32.8]} 33. h4
{[%clk 0:00:22.8]} 33... Rc3 {[%clk 0:01:31.2]} 34. Rb1 {[%clk 0:00:20.8]} 34...
Rc1 {[%clk 0:01:26.5]} 35. Rb3 {[%clk 0:00:20.5]} 35... Rc3 {[%clk 0:01:24.9]}
36. Rb1 {[%clk 0:00:20.7]} 36... Rc2 {[%clk 0:01:25.4]} 37. Rbd1 {[%clk
0:00:19.7]} 37... Bxb4 {[%clk 0:01:23.3]} 38. R1d7 {[%clk 0:00:16.3]} 38... Rxd7
{[%clk 0:01:21.7]} 39. Rxd7 {[%clk 0:00:17.2]} 39... Rc7 {[%clk 0:01:21.9]} 40.
Rd8 {[%clk 0:00:17.2]} 40... Nc3 {[%clk 0:01:20.7]} 41. Nd3 {[%clk 0:00:16.4]}
41... Be7 {[%clk 0:01:19.4]} 42. Ra8 {[%clk 0:00:15.8]} 42... b5 {[%clk
0:01:19.6]} 43. h5 {[%clk 0:00:15]} 43... b4 {[%clk 0:01:19.3]} 44. Ne5 {[%clk
0:00:14.1]} 44... Bd6 {[%clk 0:01:17.8]} 45. Nd3 {[%clk 0:00:13.8]} 45... e5
{[%clk 0:01:14.9]} 46. Ra5 {[%clk 0:00:13]} 46... Kf6 {[%clk 0:01:13.2]} 47. Kf1
{[%clk 0:00:11.4]} 47... e4 {[%clk 0:01:12]} 48. Nc1 {[%clk 0:00:10]} 48... Rc5
{[%clk 0:01:01.9]} 49. Ra6 {[%clk 0:00:09.8]} 49... Rd5 {[%clk 0:01:01.7]} 50.
Nb3 {[%clk 0:00:09.9]} 50... Kg5 {[%clk 0:00:56.1]} 51. Nd4 {[%clk 0:00:09.8]}
51... Kxh5 {[%clk 0:00:54.7]} 52. Kg2 {[%clk 0:00:05]} 52... Kg5 {[%clk
0:00:53.9]} 53. Ra7 {[%clk 0:00:05.3]} 53... Kg6 {[%clk 0:00:53]} 54. Ra6 {[%clk
0:00:05.7]} 54... f6 {[%clk 0:00:53.2]} 55. Ra8 {[%clk 0:00:05.3]} 55... Be5
{[%clk 0:00:51.9]} 56. Ne6 {[%clk 0:00:04.7]} 56... Kf7 {[%clk 0:00:52.2]} 57.
Nd8+ {[%clk 0:00:03.5]} 57... Ke7 {[%clk 0:00:50.9]} 58. Nc6+ {[%clk 0:00:03.5]}
58... Kd6 {[%clk 0:00:50.5]} 59. Nxb4 {[%clk 0:00:04.4]} 59... Rb5 {[%clk
0:00:50.1]} 60. Ra6+ {[%clk 0:00:04.4]} 60... Kd7 {[%clk 0:00:47.2]} 61. a3
{[%clk 0:00:04.9]} 61... Bd6 {[%clk 0:00:44.1]} 62. Nc6 {[%clk 0:00:04.3]} 62...
Ne2 {[%clk 0:00:39.1]} 63. Kf1 {[%clk 0:00:04]} 63... Rb2 {[%clk 0:00:38.5]} 64.
Na5 {[%clk 0:00:03.6]} 64... Rc2 {[%clk 0:00:37.1]} 65. Nb3 {[%clk 0:00:02.9]}
65... Nc1 {[%clk 0:00:34.6]} 66. Nd4 {[%clk 0:00:02.7]} 66... Ra2 {[%clk
0:00:34.9]} 67. Nxf5 {[%clk 0:00:02.8]} 67... Be5 {[%clk 0:00:34.3]} 68. Ra4
{[%clk 0:00:01.7]} 68... Nd3 {[%clk 0:00:34.1]} 69. Rxe4 {[%clk 0:00:02.3]}
69... Rxf2+ {[%clk 0:00:33.7]} 70. Kg1 {[%clk 0:00:03]} 70... Rxf5 {[%clk
0:00:34.3]} 0-1